[Event "98th Caplin Hastings Masters 2024-25"]
[Site "Hastings"]
[Date "2024.12.29"]
[Round "2.12"]
[White "Chandler, Cliff R"]
[Black "Golding, Alex"]
[Result "0-1"]
[ECO "C34"]
[WhiteElo "2161"]
[BlackElo "2405"]
[Annotator "TA"]
[PlyCount "112"]
[EventDate "2024.12.23"]
[EventType "swiss"]
[EventCountry "ENG"]
[SourceTitle "playchess.com"]
[Source "ChessBase"]
[SourceQuality "1"]
[TimeControl "5400+30"]

{[%evp 9,112,-50,-54,-58,-70,-80,-19,-53,8,0,8,-42,-54,-54,-46,-64,-51,-42,-41,-75,-15,-14,-29,-35,0,0,0,0,0,1,0,8,30,0,131,37,98,21,16,20,47,48,36,39,34,39,35,9,19,26,16,16,10,0,16,11,12,0,0,0,0,0,0,0,14,-45,-43,-81,-75,-205,-159,-207,-172,-173,-164,-177,-179,-162,-148,-393,-367,-385,-375,-401,-405,-484,-450,-449,-443,-445,-422,-433,-422,-422,-440,-425,-426,-663,-657,-602,-583,-539,-519,-486,-465]} 1. e4 {[%emt 0:00:03]} e5 {[%emt 0:01:10]} 2. f4 {[%emt 0:00:34]} exf4 {[%emt 0:03:04]} 3. Nf3 {[%emt 0:00:09]} d6 {[%emt 0:07:15]} 4. Bc4 {[%emt 0:03:54]} h6 {[%emt 0:04:02]} 5. b3 {[%emt 0:01:00]} Nc6 {[%emt 0:11:08]} 6. Bb2 {[%emt 0:03:03]} Nf6 {[%emt 0:01:27]} 7. Nc3 {[%emt 0:11:12]} Bg4 {[%emt 0:04:34]} (7... g5 $17) 8. Qe2 {[%emt 0:10:12] The position is equal.} Be7 {[%emt 0:10:41]} (8... Ne5 $15) 9. O-O-O $11 {[%emt 0:05:40]} Ne5 {[%emt 0:09:11]} 10. d4 {[%emt 0:01:10]} (10. Bb5+ $11 c6 11. d4) 10... Nxc4 $15 {[%emt 0:00:28]} 11. Qxc4 {[%emt 0:00:08]} O-O {[%emt 0:01:43]} 12. e5 {[%emt 0:04:30]} Nh5 {[%emt 0:03:02]} 13. Nd5 {[%emt 0:07:58]} Rc8 {[%emt 0:12:04]} 14. Rhe1 {[%emt 0:10:10]} Bh4 {[%emt 0:02:11]} ({Better is} 14... Re8 $17 {Threatening ...Bh4.} 15. Nxe7+ Rxe7) 15. Nxh4 $1 $11 {[%emt 0:16:40]} Qxh4 {[%emt 0:00:12]} 16. exd6 $1 {[%emt 0:00:11]} Bxd1 {[%emt 0:06:00]} (16... cxd6 {seems wilder.} 17. Ne7+ Kh7 18. Nxc8 Rxc8 19. Qxf7 Qf2) 17. Ne7+ {[%emt 0:00:25]} Kh8 {[%emt 0:00:22]} 18. Rxd1 {[%emt 0:00:31]} Rce8 {[%emt 0:01:22]} 19. Qxc7 {[%emt 0:03:50]} f3 {[%emt 0:04:33]} 20. gxf3 {[%emt 0:00:30]} (20. Qxb7 Qf4+ (20... Qxh2 $2 21. Qxf3 Qxd6 22. Nf5 $18) 21. Kb1 f2 $19 (21... Qxh2 22. Qxf3 Qxd6 23. Nf5 $14) (21... Qxd6 $2 22. Nf5 $18)) (20. d7 $2 Rd8 (20... Qxe7 21. dxe8=Q Qxe8 22. gxf3 $16) 21. Qxb7 (21. Ba3 $2 fxg2 22. Nf5 Qg5+ 23. Kb2 Qxf5 $19) 21... fxg2 (21... Qxe7 $2 22. Qxf3 Qg5+ 23. Kb1 $19) 22. Qxg2 Qxe7 $19) 20... Qf4+ {[%emt 0:00:23]} 21. Kb1 {[%emt 0:03:02]} Rd8 {[%emt 0:01:17]} (21... Qxf3 $11 22. Re1 Nf6) 22. d5 {[%emt 0:03:08]} (22. Qxb7 $16 {aiming for Ba3.} Qxd6 23. Nc6 (23. Qxa7 Rfe8 $11)) 22... Qxd6 {[%emt 0:02:04]} (22... Qxf3 $14 23. Re1 Qf2) 23. Qxd6 {[%emt 0:00:28]} (23. Qxb7 $16 Qxh2 24. Qc6 (24. Qxa7 Qe2 $16)) 23... Rxd6 {[%emt 0:00:05]} 24. c4 {[%emt 0:00:46]} Rd7 {[%emt 0:01:02]} 25. d6 {[%emt 0:02:33][%mdl 1024] White has compensation.} Rfd8 {[%emt 0:00:18]} 26. Nf5 {[%emt 0:01:30][%cal Ob3b4]} Kh7 {[%emt 0:00:20]} 27. c5 {[%emt 0:00:00]} f6 {[%emt 0:03:42]} 28. b4 {[%emt 0:00:40] Strongly threatening b5.} Kg6 {[%emt 0:00:16]} 29. Ne3 {[%emt 0:03:00]} Nf4 {[%emt 0:00:29]} 30. Kc2 {[%emt 0:01:46]} b6 {[%emt 0:00:49]} 31. Nd5 {[%emt 0:00:45]} Ne6 {[%emt 0:01:44]} 32. Ba3 {[%emt 0:01:29]} Kf7 {[%emt 0:00:14]} 33. Kb3 {[%emt 0:00:31]} bxc5 {[%emt 0:00:35]} 34. bxc5 {[%emt 0:00:07]} Rc8 {[%emt 0:00:06]} 35. Ne7 {[%emt 0:00:36]} Nxc5+ {[%emt 0:04:00]} 36. Kc4 {[%emt 0:00:19]} Re8 {[%emt 0:00:14]} 37. Bxc5 {[%emt 0:01:08]} ({White should try} 37. Kxc5 $11 Rexe7 38. Kc6) 37... Rexe7 {[%emt 0:00:07][%mdl 4096] Endgame. KRR-KRB} 38. Kd5 {[%emt 0:00:28]} Rd8 $1 {[%emt 0:00:40]} 39. Rb1 {[%emt 0:00:53]} (39. f4 $17) 39... Re5+ $19 {[%emt 0:00:12]} 40. Kd4 {[%emt 0:01:07]} (40. Kc4 $17 {is a better defense.}) 40... Rd7 {[%emt 0:00:07]} (40... Ke6 41. f4 Re2 42. Rb7 Rd2+ (42... Rxh2 $2 43. Rxa7 Rd2+ 44. Ke4 $17) 43. Kc4) 41. Rb8 {[%emt 0:00:58]} g5 $1 {[%emt 0:00:56]} 42. a4 {[%emt 0:00:35] [#]} a5 $1 {[%emt 0:02:17]} 43. Ra8 {[%emt 0:01:03]} Rf5 {[%emt 0:00:16] Threatens to win with ...Rb7.} 44. Kc4 $2 {[%emt 0:00:29] [#] White does not recover from this.} (44. Rh8 $17 {was called for.}) 44... Rb7 $1 {[%emt 0:00:33]} (44... Rxf3 45. Kd5 Rf4 46. Kc6 $11 (46. Rxa5 Rf5+ 47. Kc6 Ke6 $15) (46. Rxa5 Rf5+ 47. Kc6 Ke6 $11)) 45. Rxa5 {[%emt 0:00:32]} Ke6 $1 {[%emt 0:00:11]} (45... Rxf3 46. Rb5 Rd7 47. Rb8 $11) 46. Ra8 {[%emt 0:00:30]} Rf4+ {[%emt 0:00:09]} (46... Rxf3 47. Re8+ Kd7 48. Rh8 $15) 47. Bd4 {[%emt 0:00:17]} Rb1 {[%emt 0:00:38] Hoping for ...Rc1+. Black is clearly winning.} ({Don't take} 47... Kxd6 48. Ra6+ Ke7 49. Ra5) ({Not} 47... Rxf3 48. Re8+ Kf7 (48... Kxd6 49. Bc5+ Kd7 50. Re7+ Kc8 51. Re8+ Kc7 52. Re7+ Kc6 53. Re6+ Kd7 54. Re7+ Kc8 55. Re8+ Kd7 56. Re7+ $11) 49. Rh8 $17) 48. Re8+ {[%emt 0:01:31]} Kxd6 {[%emt 0:00:08] ...Rc1+ is the strong threat.} 49. Rd8+ {[%emt 0:00:25]} Kc7 {[%emt 0:01:01]} 50. Rd5 {[%emt 0:00:18]} Rxf3 {[%emt 0:00:55]} 51. a5 {[%emt 0:00:19]} Rc1+ {[%emt 0:00:49]} 52. Kb5 {[%emt 0:00:18]} Rb3+ {[%emt 0:00:26]} 53. Ka6 {[%emt 0:00:07]} (53. Ka4 $142 Rbb1 54. Bb6+ Kc6 55. Rd8) 53... Rc6+ {[%emt 0:00:06]} 54. Bb6+ {[%emt 0:00:24]} Rcxb6+ {[%emt 0:00:07]} 55. axb6+ {[%emt 0:00:06]} Rxb6+ {[%emt 0:00:03]} 56. Ka5 {[%emt 0:00:22]} Rd6 {[%emt 0:00:20] Weighted Error Value: White=0.30/Black=0.13 (very precise) .  Loses game:     	White=1     	---        Mistake:       	White=7     	Black=5      Inaccurate:     	White=4     	Black=2      OK:         	White=20    	Black=19     Best:        	White=4     	Black=8      Strong:       	White=2     	Black=4} 0-1

[Event "98th Caplin Hastings Masters 2024-25"]
[Site "Hastings"]
[Date "2024.12.29"]
[Round "2.13"]
[White "Zhu, Yaoyao"]
[Black "Kim, Nayoon B"]
[Result "1-0"]
[ECO "B40"]
[WhiteElo "1990"]
[BlackElo "1663"]
[Annotator "NA RC"]
[PlyCount "93"]
[EventDate "2024.12.23"]
[EventType "swiss"]
[EventCountry "ENG"]
[SourceTitle "playchess.com"]
[Source "ChessBase"]
[SourceQuality "1"]
[TimeControl "5400+30"]

1. e4 {[%emt 0:01:09]} c5 {[%emt 0:00:06]} 2. Nf3 {[%emt 0:00:05]} e6 {[%emt 0:00:07]} 3. c3 {[%emt 0:00:06]} Nf6 {[%emt 0:00:04]} 4. Bd3 {[%emt 0:00:40]} Nc6 {[%emt 0:00:39]} 5. Bc2 {[%emt 0:00:33]} g6 {[%emt 0:00:44]} 6. O-O {[%emt 0:02:16]} Bg7 {[%emt 0:00:58]} 7. d4 {[%emt 0:07:47]} cxd4 {[%emt 0:07:49]} 8. cxd4 {[%emt 0:00:03]} d5 {[%emt 0:00:06]} 9. e5 {[%emt 0:00:26]} Nd7 {[%emt 0:00:05]} 10. Nc3 {[%emt 0:01:00]} a6 {[%emt 0:01:18]} 11. Re1 {[%emt 0:07:24]} b5 {[%emt 0:03:45]} 12. a3 {[%emt 0:01:01]} Bb7 {[%emt 0:05:31]} 13. Bg5 {[%emt 0:06:28]} Qc7 {[%emt 0:03:32]} 14. Rc1 {[%emt 0:03:22]} Nb6 {[%emt 0:04:30]} 15. a4 {[%emt 0:17:06]} b4 {[%emt 0:12:47]} 16. Ne2 {[%emt 0:02:24]} Qd7 {[%emt 0:00:43]} 17. b3 {[%emt 0:03:49]} Rc8 {[%emt 0:01:47]} 18. Qd2 {[%emt 0:05:24]} a5 {[%emt 0:01:56]} 19. Bd3 {[%emt 0:03:05]} Na8 {[%emt 0:05:12]} 20. Rc2 {[%emt 0:03:03]} Na7 {[%emt 0:05:27]} 21. Rec1 {[%emt 0:03:15]} O-O {[%emt 0:00:40]} 22. Rc5 {[%emt 0:01:35]} Rxc5 {[%emt 0:01:15]} 23. Rxc5 {[%emt 0:01:31]} Nc6 {[%emt 0:00:17]} 24. Bb5 {[%emt 0:00:46]} Nc7 {[%emt 0:00:10]} 25. Bxc6 {[%emt 0:00:55]} Bxc6 {[%emt 0:00:09]} 26. Qc2 {[%emt 0:03:38]} Bxa4 {[%emt 0:04:03]} 27. bxa4 {[%emt 0:00:43]} Na6 {[%emt 0:04:27]} 28. Rxa5 {[%emt 0:01:40]} Qb7 {[%emt 0:00:26]} 29. Rb5 {[%emt 0:00:29]} Qd7 {[%emt 0:00:38]} 30. Bd2 {[%emt 0:01:34]} Rc8 {[%emt 0:00:33]} 31. Qb2 {[%emt 0:00:39]} Bf8 {[%emt 0:02:19]} 32. Qb3 {[%emt 0:06:49]} Qc6 {[%emt 0:01:43]} 33. h3 {[%emt 0:01:47]} Nc7 {[%emt 0:02:29]} 34. Bxb4 {[%emt 0:02:29]} Nxb5 {[%emt 0:00:48]} 35. Bxf8 {[%emt 0:00:14]} Nc7 {[%emt 0:01:48]} 36. Bd6 {[%emt 0:01:40]} Ne8 {[%emt 0:07:34]} 37. Bc5 {[%emt 0:00:14]} Ra8 {[%emt 0:00:16]} 38. Nc3 {[%emt 0:01:10]} Nc7 {[%emt 0:00:30]} 39. Nb5 {[%emt 0:01:20]} Na6 {[%emt 0:01:00]} 40. Be7 {[%emt 0:01:14]} Qc1+ {[%emt 0:00:39]} 41. Kh2 {[%emt 0:00:02]} Qf4+ {[%emt 0:00:09]} 42. g3 {[%emt 0:00:16]} Qe4 {[%emt 0:00:46]} 43. Qc3 {[%emt 0:02:05]} Qe2 {[%emt 0:01:13]} 44. Kg2 {[%emt 0:00:10]} Re8 {[%emt 0:03:36]} 45. Bf6 {[%emt 0:00:18]} Qc4 {[%emt 0:01:12]} 46. Qe3 {[%emt 0:00:26]} Qb4 {[%emt 0:00:13]} 47. Nd6 {[%emt 0:00:16]} 1-0

[Event "98th Caplin Hastings Masters 2024-25"]
[Site "Hastings"]
[Date "2024.12.29"]
[Round "2.14"]
[White "Liu, Tianyi (Jack)"]
[Black "Kolka, David"]
[Result "0-1"]
[ECO "B12"]
[WhiteElo "2225"]
[BlackElo "2020"]
[Annotator "RC"]
[PlyCount "64"]
[EventDate "2024.12.23"]
[EventType "swiss"]
[EventCountry "ENG"]
[SourceTitle "playchess.com"]
[Source "ChessBase"]
[SourceQuality "1"]
[TimeControl "5400+30"]

1. e4 {[%emt 0:00:03]} c6 {[%emt 0:14:40]} 2. d4 {[%emt 0:00:05]} d5 {[%emt 0:00:15]} 3. e5 {[%emt 0:00:02]} c5 {[%emt 0:00:36]} 4. dxc5 {[%emt 0:00:05]} e6 {[%emt 0:00:09]} 5. Nf3 {[%emt 0:01:32]} Bxc5 {[%emt 0:01:38]} 6. a3 {[%emt 0:00:04]} f6 {[%emt 0:00:43]} 7. b4 {[%emt 0:04:49]} Be7 {[%emt 0:00:04]} 8. Bb5+ {[%emt 0:02:53]} Bd7 {[%emt 0:16:58]} 9. Bd3 {[%emt 0:00:06]} Nc6 {[%emt 0:02:30]} 10. Bb2 {[%emt 0:01:20]} Nh6 {[%emt 0:02:30]} 11. b5 {[%emt 0:21:52]} Nxe5 {[%emt 0:05:15]} 12. Nxe5 {[%emt 0:08:37]} fxe5 {[%emt 0:00:10]} 13. Qh5+ {[%emt 0:26:17]} Nf7 {[%emt 0:05:24]} 14. Bxe5 {[%emt 0:02:06]} Bf6 {[%emt 0:05:57]} 15. f4 {[%emt 0:00:57]} g6 {[%emt 0:02:39]} 16. Qe2 {[%emt 0:02:56]} Bxe5 {[%emt 0:01:05]} 17. fxe5 {[%emt 0:00:01]} Qh4+ {[%emt 0:00:47]} 18. Kd1 {[%emt 0:03:27]} Qd4 {[%emt 0:00:34]} 19. Ra2 {[%emt 0:00:12]} Bxb5 {[%emt 0:08:24]} 20. Nd2 {[%emt 0:01:27]} Bxd3 {[%emt 0:01:11]} 21. cxd3 {[%emt 0:00:10]} Qxe5 {[%emt 0:02:10]} 22. Qf3 {[%emt 0:00:42]} O-O {[%emt 0:02:13]} 23. Re1 {[%emt 0:00:35]} Qxh2 {[%emt 0:05:04]} 24. Rxe6 {[%emt 0:02:40]} Ng5 {[%emt 0:12:48]} 25. Qxd5 {[%emt 0:05:38]} Nxe6 {[%emt 0:00:06]} 26. Qxe6+ {[%emt 0:00:05]} Kh8 {[%emt 0:00:38]} 27. Ne4 {[%emt 0:01:44]} Rae8 {[%emt 0:04:12]} 28. Qc4 {[%emt 0:04:05]} Qg1+ {[%emt 0:00:34]} 29. Kd2 {[%emt 0:01:32]} Rxe4 {[%emt 0:02:42]} 30. Qxe4 {[%emt 0:02:44]} Rf2+ {[%emt 0:00:48]} 31. Kc3 {[%emt 0:00:13]} Qc1+ {[%emt 0:00:16]} 32. Kd4 {[%emt 0:04:50]} Rf4 {[%emt 0:00:08]} 0-1

[Event "98th Caplin Hastings Masters 2024-25"]
[Site "Hastings"]
[Date "2024.12.29"]
[Round "2.15"]
[White "Malinovskii, Ilia"]
[Black "Schimnatkowski, Lukas"]
[Result "0-1"]
[ECO "C24"]
[WhiteElo "2003"]
[BlackElo "2221"]
[Annotator "RC"]
[PlyCount "86"]
[EventDate "2024.12.23"]
[EventType "swiss"]
[EventCountry "ENG"]
[SourceTitle "playchess.com"]
[Source "ChessBase"]
[SourceQuality "1"]
[TimeControl "5400+30"]

1. e4 {[%emt 0:00:03]} e5 {[%emt 0:00:06]} 2. Nc3 {[%emt 0:00:09]} Nf6 {[%emt 0:01:59]} 3. Bc4 {[%emt 0:00:07]} Nc6 {[%emt 0:01:00]} 4. d3 {[%emt 0:00:07]} Na5 {[%emt 0:03:54]} 5. Bb3 {[%emt 0:00:10]} Bb4 {[%emt 0:09:33]} 6. Nge2 {[%emt 0:02:15]} d6 {[%emt 0:03:59]} 7. O-O {[%emt 0:03:03]} O-O {[%emt 0:08:25]} 8. Bg5 {[%emt 0:06:44]} Bxc3 {[%emt 0:01:35]} 9. Nxc3 {[%emt 0:01:31]} h6 {[%emt 0:01:19]} 10. Bxf6 {[%emt 0:06:29]} Qxf6 {[%emt 0:00:16]} 11. Nd5 {[%emt 0:00:20]} Qd8 {[%emt 0:00:48]} 12. f4 {[%emt 0:10:16]} Nxb3 {[%emt 0:09:46]} 13. axb3 {[%emt 0:00:08]} Be6 {[%emt 0:00:48]} 14. Ne3 {[%emt 0:05:55]} exf4 {[%emt 0:01:03]} 15. Rxf4 {[%emt 0:00:34]} d5 {[%emt 0:21:52]} 16. exd5 {[%emt 0:04:20]} Bxd5 {[%emt 0:00:09]} 17. Qh5 {[%emt 0:09:42]} Be6 {[%emt 0:01:15]} 18. Raf1 {[%emt 0:00:35]} Qg5 {[%emt 0:02:40]} 19. Qf3 {[%emt 0:00:24]} c6 {[%emt 0:01:04]} 20. h4 {[%emt 0:02:32]} Qe7 {[%emt 0:02:24]} 21. d4 {[%emt 0:11:57]} Rad8 {[%emt 0:02:38]} 22. c4 {[%emt 0:01:29]} Rfe8 {[%emt 0:08:36]} 23. Re4 {[%emt 0:05:36]} Qf8 {[%emt 0:03:47]} 24. Kh1 {[%emt 0:09:35]} f6 {[%emt 0:01:53]} 25. d5 {[%emt 0:03:01]} cxd5 {[%emt 0:00:22]} 26. cxd5 {[%emt 0:00:13]} Bd7 {[%emt 0:00:35]} 27. Rf4 {[%emt 0:04:43]} Qc5 {[%emt 0:01:49]} 28. Ng4 {[%emt 0:02:58]} Bxg4 {[%emt 0:02:09]} 29. Rxg4 {[%emt 0:00:58]} Qxd5 {[%emt 0:03:14]} 30. Qxf6 {[%emt 0:01:06]} Qd7 {[%emt 0:00:34]} 31. Qg6 {[%emt 0:01:33]} Rf8 {[%emt 0:02:35]} 32. Re1 {[%emt 0:00:57]} Rf7 {[%emt 0:00:47]} 33. Rg3 {[%emt 0:03:50]} Qd2 {[%emt 0:01:39]} 34. Ree3 {[%emt 0:00:56]} Qc1+ {[%emt 0:02:11]} 35. Kh2 {[%emt 0:00:08]} Qc6 {[%emt 0:00:21]} 36. Re6 {[%emt 0:02:02]} Qc7 {[%emt 0:00:07]} 37. Qe4 {[%emt 0:01:16]} Rdf8 {[%emt 0:00:59]} 38. Re8 {[%emt 0:00:49]} Rxe8 {[%emt 0:00:44]} 39. Qxe8+ {[%emt 0:00:06]} Rf8 {[%emt 0:00:26]} 40. Qg6 {[%emt 0:00:17]} Kh8 {[%emt 0:00:11]} 41. h5 {[%emt 0:00:27]} Qe5 {[%emt 0:00:24]} 42. Kh3 {[%emt 0:01:19]} Qxb2 {[%emt 0:00:54]} 43. Rf3 {[%emt 0:00:36]} Rxf3+ {[%emt 0:01:10]} 0-1

[Event "98th Caplin Hastings Masters 2024-25"]
[Site "Hastings"]
[Date "2024.12.29"]
[Round "2.16"]
[White "Badacsonyi, Frankie"]
[Black "Adams, Henry"]
[Result "1/2-1/2"]
[ECO "E10"]
[WhiteElo "2218"]
[BlackElo "1991"]
[Annotator "RC"]
[PlyCount "88"]
[EventDate "2024.12.23"]
[EventType "swiss"]
[EventCountry "ENG"]
[SourceTitle "playchess.com"]
[Source "ChessBase"]
[SourceQuality "1"]
[TimeControl "5400+30"]

1. d4 {[%emt 0:00:01]} Nf6 {[%emt 0:00:06]} 2. c4 {[%emt 0:00:05]} e6 {[%emt 0:00:04]} 3. Nf3 {[%emt 0:00:12]} d5 {[%emt 0:00:05]} 4. cxd5 {[%emt 0:00:47]} exd5 {[%emt 0:00:08]} 5. Nc3 {[%emt 0:00:04]} Be7 {[%emt 0:02:41]} 6. Bf4 {[%emt 0:00:32]} O-O {[%emt 0:01:14]} 7. e3 {[%emt 0:02:40]} c6 {[%emt 0:04:49]} 8. Bd3 {[%emt 0:07:14]} Re8 {[%emt 0:05:12]} 9. h3 {[%emt 0:05:06]} b6 {[%emt 0:09:17]} 10. O-O {[%emt 0:02:45]} Ba6 {[%emt 0:16:55]} 11. Bxa6 {[%emt 0:05:46]} Nxa6 {[%emt 0:00:07]} 12. Qa4 {[%emt 0:08:01]} Qc8 {[%emt 0:04:38]} 13. Rfc1 {[%emt 0:01:57]} Qb7 {[%emt 0:02:01]} 14. Bg5 {[%emt 0:21:10]} Nd7 {[%emt 0:09:22]} 15. Bxe7 {[%emt 0:01:43]} Rxe7 {[%emt 0:03:33]} 16. a3 {[%emt 0:03:07]} Nc7 {[%emt 0:03:21]} 17. Qb4 {[%emt 0:02:22]} Ree8 {[%emt 0:09:10]} 18. Ne2 {[%emt 0:04:15]} c5 {[%emt 0:07:25]} 19. dxc5 {[%emt 0:01:04]} Nxc5 {[%emt 0:00:18]} 20. Rd1 {[%emt 0:01:46]} Re4 {[%emt 0:02:26]} 21. Nfd4 {[%emt 0:04:36]} Rd8 {[%emt 0:02:52]} 22. Qd2 {[%emt 0:00:06]} N7e6 {[%emt 0:01:39]} 23. Rac1 {[%emt 0:01:12]} Nc7 {[%emt 0:07:58]} 24. Qc3 {[%emt 0:06:20]} Ree8 {[%emt 0:01:49]} 25. b4 {[%emt 0:08:46]} N5e6 {[%emt 0:00:08]} 26. Qb3 {[%emt 0:01:22]} Rd7 {[%emt 0:01:50]} 27. Rc2 {[%emt 0:01:45]} Qa6 {[%emt 0:01:03]} 28. Rcd2 {[%emt 0:02:53]} Ng5 {[%emt 0:00:46]} 29. Qb2 {[%emt 0:00:31]} Ne4 {[%emt 0:01:00]} 30. Rc2 {[%emt 0:00:02]} Nd6 {[%emt 0:00:29]} 31. Qb3 {[%emt 0:01:09]} Nc4 {[%emt 0:00:46]} 32. a4 {[%emt 0:00:08]} b5 {[%emt 0:00:44]} 33. axb5 {[%emt 0:01:32]} Nxb5 {[%emt 0:00:17]} 34. Ra2 {[%emt 0:00:45]} Nxd4 {[%emt 0:00:23]} 35. Nxd4 {[%emt 0:00:01]} Qb6 {[%emt 0:01:05]} 36. Rda1 {[%emt 0:00:36]} Rb7 {[%emt 0:00:53]} 37. b5 {[%emt 0:00:16]} Qc5 {[%emt 0:00:21]} 38. Ra6 {[%emt 0:01:13]} Rc8 {[%emt 0:01:21]} 39. Qd1 {[%emt 0:02:56]} Rcc7 {[%emt 0:00:36]} 40. Qg4 {[%emt 0:00:22]} Nd2 {[%emt 0:01:28]} 41. Qf4 {[%emt 0:01:08]} Qc1+ {[%emt 0:00:00]} 42. Rxc1 {[%emt 0:02:01]} Rxc1+ {[%emt 0:00:00]} 43. Kh2 {[%emt 0:00:01]} Nf1+ {[%emt 0:00:04]} 44. Kg1 {[%emt 0:00:02]} Nd2+ {[%emt 0:00:04]} 1/2-1/2

[Event "98th Caplin Hastings Masters 2024-25"]
[Site "Hastings"]
[Date "2024.12.29"]
[Round "2.17"]
[White "Struck, Lasse"]
[Black "Muir, Andrew J"]
[Result "1-0"]
[ECO "E04"]
[WhiteElo "1983"]
[BlackElo "2214"]
[Annotator "RC"]
[PlyCount "51"]
[EventDate "2024.12.23"]
[EventType "swiss"]
[EventCountry "ENG"]
[SourceTitle "playchess.com"]
[Source "ChessBase"]
[SourceQuality "1"]
[TimeControl "5400+30"]

1. d4 {[%emt 0:00:03]} d5 {[%emt 0:00:19]} 2. c4 {[%emt 0:00:06]} e6 {[%emt 0:00:16]} 3. Nf3 {[%emt 0:00:14]} Nf6 {[%emt 0:00:06]} 4. g3 {[%emt 0:00:06]} dxc4 {[%emt 0:00:21]} 5. Bg2 {[%emt 0:00:17]} a6 {[%emt 0:00:32]} 6. O-O {[%emt 0:00:29]} Nc6 {[%emt 0:00:30]} 7. e3 {[%emt 0:00:54]} Rb8 {[%emt 0:02:04]} 8. Nfd2 {[%emt 0:00:41]} e5 {[%emt 0:00:59]} 9. Bxc6+ {[%emt 0:00:20]} bxc6 {[%emt 0:00:06]} 10. dxe5 {[%emt 0:00:11]} Ng4 {[%emt 0:01:06]} 11. Nxc4 {[%emt 0:00:18]} Be6 {[%emt 0:01:03]} 12. Nbd2 {[%emt 0:04:08]} Bb4 {[%emt 0:01:46]} 13. Qc2 {[%emt 0:08:11]} h5 {[%emt 0:12:05]} 14. f3 {[%emt 0:12:23]} h4 {[%emt 0:11:17]} 15. fxg4 {[%emt 0:02:13]} hxg3 {[%emt 0:04:06]} 16. Nf3 {[%emt 0:09:17]} gxh2+ {[%emt 0:06:39]} 17. Kh1 {[%emt 0:01:28]} Bxg4 {[%emt 0:15:23]} 18. Qe4 {[%emt 0:04:32]} Bh3 {[%emt 0:04:33]} 19. Qxc6+ {[%emt 0:04:38]} Kf8 {[%emt 0:01:29]} 20. Bd2 {[%emt 0:01:25]} Bxf1 {[%emt 0:03:41]} 21. Rxf1 {[%emt 0:00:26]} Qd3 {[%emt 0:15:18]} 22. Bxb4+ {[%emt 0:02:44]} Rxb4 {[%emt 0:00:17]} 23. Nfd2 {[%emt 0:00:36]} Kg8 {[%emt 0:07:32]} 24. e6 {[%emt 0:07:54]} fxe6 {[%emt 0:01:07]} 25. Qxe6+ {[%emt 0:00:24]} Kh7 {[%emt 0:00:04]} 26. Rf2 {[%emt 0:02:29]} 1-0

[Event "98th Caplin Hastings Masters 2024-25"]
[Site "Hastings"]
[Date "2024.12.29"]
[Round "2.18"]
[White "Zhang, Kendrick Botong"]
[Black "Golding, James"]
[Result "0-1"]
[ECO "C50"]
[WhiteElo "1979"]
[BlackElo "2203"]
[Annotator "RC"]
[PlyCount "72"]
[EventDate "2024.12.23"]
[EventType "swiss"]
[EventCountry "ENG"]
[SourceTitle "playchess.com"]
[Source "ChessBase"]
[SourceQuality "1"]
[TimeControl "5400+30"]

1. e4 {[%emt 0:00:08]} e5 {[%emt 0:00:04]} 2. Nf3 {[%emt 0:00:06]} Nc6 {[%emt 0:00:03]} 3. Bc4 {[%emt 0:00:10]} Bc5 {[%emt 0:00:07]} 4. d3 {[%emt 0:01:05]} Nf6 {[%emt 0:00:09]} 5. Bg5 {[%emt 0:00:25]} d6 {[%emt 0:01:13]} 6. c3 {[%emt 0:01:51]} a6 {[%emt 0:02:33]} 7. Nbd2 {[%emt 0:01:54]} h6 {[%emt 0:02:05]} 8. Bh4 {[%emt 0:00:30]} Ba7 {[%emt 0:01:45]} 9. a4 {[%emt 0:01:26]} Be6 {[%emt 0:07:37]} 10. b4 {[%emt 0:08:01]} Qe7 {[%emt 0:05:19]} 11. O-O {[%emt 0:08:38]} g5 {[%emt 0:01:51]} 12. Bg3 {[%emt 0:00:21]} O-O {[%emt 0:09:57]} 13. Re1 {[%emt 0:10:59]} Rae8 {[%emt 0:11:25]} 14. Bb3 {[%emt 0:08:43]} Qd7 {[%emt 0:08:54]} 15. Nc4 {[%emt 0:02:31]} Bg4 {[%emt 0:03:45]} 16. Ne3 {[%emt 0:07:22]} Bh5 {[%emt 0:00:17]} 17. Nd5 {[%emt 0:10:46]} Nxd5 {[%emt 0:01:09]} 18. Bxd5 {[%emt 0:01:04]} Kg7 {[%emt 0:00:58]} 19. Nxe5 {[%emt 0:04:24]} Nxe5 {[%emt 0:00:08]} 20. Bxe5+ {[%emt 0:03:58]} Kg6 {[%emt 0:02:39]} 21. Qc2 {[%emt 0:07:41]} dxe5 {[%emt 0:00:36]} 22. Bxb7 {[%emt 0:00:11]} Qd6 {[%emt 0:02:30]} 23. Bd5 {[%emt 0:04:33]} Kg7 {[%emt 0:01:17]} 24. b5 {[%emt 0:02:14]} Bg4 {[%emt 0:05:21]} 25. Bb7 {[%emt 0:03:12]} axb5 {[%emt 0:00:45]} 26. axb5 {[%emt 0:00:04]} Bb6 {[%emt 0:00:08]} 27. Ra4 {[%emt 0:00:44]} Rd8 {[%emt 0:02:52]} 28. Bd5 {[%emt 0:00:28]} Be6 {[%emt 0:00:31]} 29. c4 {[%emt 0:03:55]} Bxd5 {[%emt 0:03:48]} 30. cxd5 {[%emt 0:01:00]} Ra8 {[%emt 0:02:05]} 31. Rea1 {[%emt 0:00:13]} Rxa4 {[%emt 0:00:32]} 32. Rxa4 {[%emt 0:00:20]} f5 {[%emt 0:00:27]} 33. Rc4 {[%emt 0:02:12]} fxe4 {[%emt 0:01:06]} 34. dxe4 {[%emt 0:00:07]} Rxf2 {[%emt 0:02:58]} 35. Rxc7+ {[%emt 0:00:39]} Kg6 {[%emt 0:00:41]} 36. Qc6 {[%emt 0:01:02]} Rf6+ {[%emt 0:00:12]} 0-1